Workbook

Sheet Sheet1
A1: 贵州大学2025年多宗资产招租（第二次挂牌）清单
A2: 标的 | B2: 资产名称 | C2: 所在楼层 | D2: 招租面积（㎡） | E2: 租期（年） | F2: 租金（元/㎡·月） | G2: 年租金（元) | H2: 交易保证金（元） | I2: 经营业态 | J2: 是否有原承租户 | K2: 是否有产权证明 | L2: 备注
A3: 1 | B3: 东校区中山园2号学生公寓楼1号 | C3: 1 | D3: 28.8 | E3: 3 | F3: 90.00 | G3: =D3*F3*12 -> 31104.00 | H3: 6220 | I3: 禁止业态： （一）生产、加工、储存、经营易燃性、爆炸性、毒害性、放射性、腐蚀性物质或者传染病病原体等危险物质； （二）开设酒吧、歌舞厅、录像厅、电子游戏室、网吧等娱乐场所； （三）餐饮类； （四）便利店、水果店、打印店等由校属企业统一运营监管的相关业态； （五）法律法规明确禁止的各类经营业态。 | J3: 闲置 | K3: 有
A4: 2 | B4: 东校区中山园2号学生公寓楼2号 | C4: 1 | D4: 28.8 | E4: 3 | F4: 90.00 | G4: 31104.00 | H4: 6220 | J4: 闲置 | K4: 有
A5: 3 | B5: 西校区西一期3号学生公寓楼3-3号 | C5: 1 | D5: 24.84 | E5: 3 | F5: 90.00 | G5: 26827.20 | H5: 5365 | J5: 闲置 | K5: 有
A6: 4 | B6: 西校区西一期3号学生公寓楼3-4号 | C6: 1 | D6: 24.84 | E6: 3 | F6: 90.00 | G6: 26827.20 | H6: 5365 | J6: 闲置 | K6: 有
A7: 5 | B7: 西校区西一期3号学生公寓楼3-5号 | C7: 1 | D7: 24.84 | E7: 3 | F7: 90.00 | G7: 26827.20 | H7: 5365 | J7: 闲置 | K7: 有
A8: 6 | B8: 西校区西一期3号学生公寓楼3-6号 | C8: 1 | D8: 24.84 | E8: 3 | F8: 90.00 | G8: 26827.20 | H8: 5265 | J8: 闲置 | K8: 有
A9: 7 | B9: 西校区西一期8号学生公寓楼8-9号 | C9: 1 | D9: 592.14 | E9: 3 | F9: 60.00 | G9: =D9*F9*12 -> 426340.80 | H9: 50000 | J9: 闲置 | K9: 有
A10: 8 | B10: 西校区西一期8号学生公寓楼8-10号 | C10: 1 | D10: 45.5 | E10: 3 | F10: 70.00 | G10: 38220.00 | H10: =G10*20% -> 7644 | J10: 闲置 | K10: 有
A11: 9 | B11: 西校区西一期8号学生公寓楼8-11号 | C11: 1 | D11: 45.5 | E11: 3 | F11: 70.00 | G11: 38220.00 | H11: =G11*20% -> 7644 | J11: 闲置 | K11: 有
A12: 10 | B12: 西校区西一期8号学生公寓楼8-15号 | C12: 1 | D12: 36.05 | E12: 3 | F12: 70.00 | G12: 30282.00 | H12: 6056 | J12: 闲置 | K12: 有
A13: 11 | B13: 西校区西一期8号学生公寓楼8-16号 | C13: 1 | D13: 36.05 | E13: 3 | F13: 70.00 | G13: 30282.00 | H13: 6056 | J13: 闲置 | K13: 有
A14: 12 | B14: 西校区西一期1号学生公寓楼1-5号、1-6号 | C14: 1 | D14: 37.1 | E14: 3 | F14: 140.00 | G14: 62328.00 | H14: 12465 | J14: 闲置 | K14: 有
A15: 13 | B15: 西校区西一期7号学生公寓楼7-8号 | C15: 1 | D15: 17.49 | E15: 3 | F15: 60.00 | G15: 12592.80 | H15: 2518 | J15: 闲置 | K15: 有
A16: 14 | B16: 西校区西一期7号学生公寓楼7-9号 | C16: 1 | D16: 17.49 | E16: 3 | F16: 60.00 | G16: 12592.80 | H16: 2518 | J16: 闲置 | K16: 有
A17: 15 | B17: 花溪区朝阳村54栋59号 | C17: 1 | D17: 209.41 | E17: 5 | F17: 20.00 | G17: 50258.40 | H17: 10000 | I17: 禁止业态： （一）生产、加工、储存、经营易燃性、爆炸性、毒害性、放射性、腐蚀性物质或者传染病病原体等危险物质； （二）开设酒吧、歌舞厅、录像厅、电子游戏室、网吧等娱乐场所； （三）法律法规明确禁止的各类经营业态。 | J17: 闲置 | K17: 有 | L17: 房产特殊性：餐饮以及用水量大的业态（下水道年久失修易堵塞）。
A18: 16 | B18: 花溪区朝阳村10栋65号 | C18: 1 | D18: 1359.18 | E18: 5 | F18: 20.00 | G18: 326203.20 | H18: 60000 | J18: 闲置 | K18: 有
A19: 17 | B19: 花溪区朝阳村12栋68号 | C19: 1 | D19: 33.39 | E19: 5 | F19: 10.00 | G19: 4006.80 | H19: 801 | J19: 闲置 | K19: 有
A20: 18 | B20: 花溪区学士路一层40号（原教工俱乐部） | C20: 1 | D20: 156 | E20: 5 | F20: 100.00 | G20: 187200.00 | H20: =G20*20% -> 37440 | J20: 闲置 | K20: 有
A21: 19 | B21: 花溪区松水路149号（原花溪学士路44号） | C21: 1 | D21: 80 | E21: 5 | F21: 40.00 | G21: 38400.00 | H21: =G21*20% -> 7680 | J21: 闲置 | K21: 有
A22: 20 | B22: 花溪区学士路43-1号 | C22: 1 | D22: 25.5 | E22: 5 | F22: 90.00 | G22: 27540.00 | H22: =G22*20% -> 5508 | J22: 闲置 | K22: 有
A23: 21 | B23: 花溪区学士路43-2号 | C23: 1 | D23: 28.7 | E23: 5 | F23: 90.00 | G23: 30996.00 | H23: 6199 | J23: 闲置 | K23: 有
A24: 22 | B24: 云岩区浣纱路137号（现148号） | C24: 1 | D24: 16 | E24: 5 | F24: 100.00 | G24: 19200.00 | H24: =G24*20% -> 3840 | J24: 闲置 | K24: 有
A25: 23 | B25: 云岩区浣纱路169号（现150号） | C25: 1 | D25: 16 | E25: 5 | F25: 100.00 | G25: 19200.00 | H25: =G25*20% -> 3840 | J25: 闲置 | K25: 有
A26: 24 | B26: 云岩区浣纱路169-1号（现150号） | C26: 1 | D26: 24 | E26: 5 | F26: 100.00 | G26: 28800.00 | H26: =G26*20% -> 5760 | J26: 闲置 | K26: 有
A27: 25 | B27: 云岩区浣纱巷职工集资住宅C栋1-1号、1-2号 | C27: 1 | D27: 48.09 | E27: 5 | F27: 20.00 | G27: 11541.60 | H27: 2308 | J27: 闲置 | K27: 有
A28: 26 | B28: 云岩区浣纱巷职工集资住宅C栋1-3号、1-4号 | C28: 1 | D28: 21.23 | E28: 5 | F28: 20.00 | G28: 5095.20 | H28: 1019 | J28: 闲置 | K28: 有
A29: 27 | B29: 花溪区霞晖路贵大劳动服务部贵大科培楼三楼 | C29: 3 | D29: 500 | E29: 5 | F29: 30.00 | G29: 180000.00 | H29: =G29*20% -> 36000 | J29: 闲置 | K29: 有
A30: 28 | B30: 花溪区霞晖路贵大劳动服务部126号 | C30: 1 | D30: 14.3 | E30: 5 | F30: 60.00 | G30: 10296.00 | H30: 2059 | J30: 闲置 | K30: 有
A31: 29 | B31: 花溪区霞晖路贵大劳动服务部130号 | C31: 1 | D31: 12.6 | E31: 5 | F31: 60.00 | G31: 9072.00 | H31: 1814 | J31: 闲置 | K31: 有
A32: 30 | B32: 花溪区霞晖路贵大劳动服务部二楼29号 | C32: 2 | D32: 12 | E32: 5 | F32: 20.00 | G32: 2880.00 | H32: =G32*20% -> 576 | J32: 闲置 | K32: 有
A33: 31 | B33: 花溪区霞晖路贵大劳动服务部二楼30号 | C33: 2 | D33: 11.29 | E33: 5 | F33: 20.00 | G33: 2709.60 | H33: 541 | J33: 闲置 | K33: 有
A34: 32 | B34: 花溪区霞晖路贵大劳动服务部二楼30-1号 | C34: 2 | D34: 15.32 | E34: 5 | F34: 20.00 | G34: 3676.80 | H34: 735 | I34: 禁止业态： （一）生产、加工、储存、经营易燃性、爆炸性、毒害性、放射性、腐蚀性物质或者传染病病原体等危险物质； （二）开设酒吧、歌舞厅、录像厅、电子游戏室、网吧等娱乐场所； （三）法律法规明确禁止的各类经营业态。 | J34: 闲置 | K34: 有
A35: 33 | B35: 花溪区霞晖路贵大劳动服务部二楼31号 | C35: 2 | D35: 15.32 | E35: 5 | F35: 20.00 | G35: 3676.80 | H35: 735 | J35: 闲置 | K35: 有
A36: 34 | B36: 花溪区霞晖路贵大劳动服务部二楼36号 | C36: 2 | D36: 12 | E36: 5 | F36: 20.00 | G36: 2880.00 | H36: =G36*20% -> 576 | J36: 闲置 | K36: 有
A37: 35 | B37: 花溪区霞晖路贵大劳动服务部二楼37号 | C37: 2 | D37: 15 | E37: 5 | F37: 20.00 | G37: 3600.00 | H37: 720 | J37: 闲置 | K37: 有
A38: 36 | B38: 花溪区霞晖路贵大劳动服务部三楼33号 | C38: 3 | D38: 55 | E38: 5 | F38: 15.00 | G38: 9900.00 | H38: 1980 | J38: 闲置 | K38: 有
A39: 37 | B39: 霞晖路联建开发楼2号车位 | C39: 1 | D39: 35.2 | E39: 5 | F39: 180元/月 | G39: 2160 | H39: 432 | J39: 闲置 | K39: 有 | L39: 车位
A40: 38 | B40: 霞晖路联建开发楼3号车位 | C40: 1 | D40: 35.2 | E40: 5 | F40: 180元/月 | G40: 2160 | H40: 432 | J40: 闲置 | K40: 有 | L40: 车位
A41: 39 | B41: 霞晖路联建开发楼5号车位 | C41: 1 | D41: 35.2 | E41: 5 | F41: 180元/月 | G41: 2160 | H41: 432 | J41: 闲置 | K41: 有 | L41: 车位
A42: 40 | B42: 霞晖路联建开发楼6号车位 | C42: 1 | D42: 35.2 | E42: 5 | F42: 180元/月 | G42: 2160 | H42: 432 | J42: 闲置 | K42: 有 | L42: 车位
A43: 41 | B43: 霞晖路联建开发楼8号车位 | C43: 1 | D43: 35.2 | E43: 5 | F43: 180元/月 | G43: 2160 | H43: 432 | J43: 闲置 | K43: 有 | L43: 车位
A44: 42 | B44: 霞晖路联建开发楼10号车位 | C44: 1 | D44: 35.2 | E44: 5 | F44: 180元/月 | G44: 2160 | H44: 432 | J44: 闲置 | K44: 有 | L44: 车位
A45: 其他须知 | B45: 1.承租履约保证金须在《房屋租赁合同》签订前按照半年租金标准收取。承租方如需提前退租，视为违约，需至少提前1 个月提出书面申请，招租方从其缴纳保证金中扣除50%作为违约金，并有权单方解除合同； 2.租金收取按照“先缴费，后使用”的原则，每半年缴纳1 次。承租方需提前15天缴纳次半年租金，逾期未缴租金，按每日0.4‰收取滞纳金。逾期60 日未缴且经催缴仍拒不缴纳的，视为承租方违约，招租方有权单方解除合同并不退还保证金； 3.承租方性质要求：承租方是自然人的，必须提供有效身份证明和无犯罪记录证明原件及复印件;承租方是法人的，必须提供营业执照、法定代表人身份证、单位无不良记录证明、“信用中国”网站（www.creditchina.gov.cn）（输入网址、公司名称，点击公司名称即出现查询结果）打印的信用报告，若委托相关人员办理出租事宜的，还应提交法定代表人授权委托书。

Sheet Sheet2

Sheet Sheet3
